[Event "Early-Titled-Tuesday-Blitz-February-27-2024"]
[Site "Chess.com"]
[Date "2024.02.27"]
[Round "11"]
[White "PLAYER_2006_M"]
[Black "Hikaru"]
[Result "0-1"]
[WhiteElo "3018"]
[BlackElo "3235"]
[TimeControl "180+1"]
[EndTime "10:07:32 PST"]
[Termination "Hikaru won on time"]

1. e4 {[%clk 0:03:00.9]} 1... d5 {[%clk 0:02:59.1]} 2. exd5 {[%clk 0:03:00.7]}
2... Qxd5 {[%clk 0:03:00]} 3. Nc3 {[%clk 0:03:01.3]} 3... Qa5 {[%clk 0:03:00.4]}
4. d4 {[%clk 0:03:01.9]} 4... c6 {[%clk 0:03:00.5]} 5. Nf3 {[%clk 0:03:02.3]}
5... Bf5 {[%clk 0:02:53.5]} 6. Ne5 {[%clk 0:02:58.3]} 6... e6 {[%clk 0:02:53.6]}
7. Nc4 {[%clk 0:02:46]} 7... Qd8 {[%clk 0:02:49.9]} 8. Be2 {[%clk 0:02:46.1]}
8... Nf6 {[%clk 0:02:48.6]} 9. O-O {[%clk 0:02:46.4]} 9... Nbd7 {[%clk
0:02:48.4]} 10. Bf4 {[%clk 0:02:44.1]} 10... Nb6 {[%clk 0:02:48.3]} 11. Bg3
{[%clk 0:02:29.1]} 11... Be7 {[%clk 0:02:36.5]} 12. Ne3 {[%clk 0:02:28.7]} 12...
Bg6 {[%clk 0:02:36.8]} 13. Bf3 {[%clk 0:02:29.3]} 13... O-O {[%clk 0:02:35.8]}
14. Ne2 {[%clk 0:02:29.4]} 14... h6 {[%clk 0:02:31.8]} 15. c3 {[%clk 0:02:29.4]}
15... Bd6 {[%clk 0:02:30.1]} 16. Bxd6 {[%clk 0:02:27.7]} 16... Qxd6 {[%clk
0:02:31]} 17. a4 {[%clk 0:02:27.2]} 17... a5 {[%clk 0:02:28.3]} 18. Qb3 {[%clk
0:02:26.4]} 18... Qc7 {[%clk 0:02:28.4]} 19. Rfd1 {[%clk 0:02:24.6]} 19... Rfd8
{[%clk 0:02:25]} 20. Ng3 {[%clk 0:02:22.4]} 20... Rd7 {[%clk 0:02:19.6]} 21.
Ngf1 {[%clk 0:02:15.6]} 21... Rad8 {[%clk 0:02:17.3]} 22. h3 {[%clk 0:02:16.1]}
22... h5 {[%clk 0:02:04.2]} 23. Nc4 {[%clk 0:02:14.7]} 23... Nxc4 {[%clk
0:02:00.2]} 24. Qxc4 {[%clk 0:02:15.6]} 24... h4 {[%clk 0:01:59.9]} 25. Ne3
{[%clk 0:02:09.4]} 25... Nh7 {[%clk 0:01:56]} 26. Qe2 {[%clk 0:02:07.3]} 26...
Nf6 {[%clk 0:01:43.6]} 27. Nc4 {[%clk 0:02:06.3]} 27... Bh7 {[%clk 0:01:38.5]}
28. Ne5 {[%clk 0:02:06.1]} 28... Rd6 {[%clk 0:01:38.8]} 29. Qe3 {[%clk
0:01:57.6]} 29... Nd5 {[%clk 0:01:37]} 30. Bxd5 {[%clk 0:01:50.2]} 30... exd5
{[%clk 0:01:31.2]} 31. Re1 {[%clk 0:01:46.6]} 31... f6 {[%clk 0:01:22.4]} 32.
Nf3 {[%clk 0:01:34.8]} 32... g5 {[%clk 0:01:22.4]} 33. Nd2 {[%clk 0:01:35.2]}
33... R6d7 {[%clk 0:01:16.6]} 34. f4 {[%clk 0:01:29.2]} 34... Qxf4 {[%clk
0:01:02.3]} 35. Qxf4 {[%clk 0:01:29.2]} 35... gxf4 {[%clk 0:01:03.2]} 36. Rf1
{[%clk 0:01:28.1]} 36... Re8 {[%clk 0:01:01.9]} 37. Rxf4 {[%clk 0:01:27.9]}
37... Re2 {[%clk 0:01:02.1]} 38. Rf2 {[%clk 0:01:25]} 38... Rde7 {[%clk
0:01:02.1]} 39. Nf3 {[%clk 0:01:20.4]} 39... Bd3 {[%clk 0:01:02.1]} 40. Rxe2
{[%clk 0:00:53.1]} 40... Rxe2 {[%clk 0:01:03]} 41. b4 {[%clk 0:00:53.6]} 41...
axb4 {[%clk 0:00:56.9]} 42. cxb4 {[%clk 0:00:54.5]} 42... Rb2 {[%clk 0:00:57.3]}
43. b5 {[%clk 0:00:52.8]} 43... cxb5 {[%clk 0:00:54.8]} 44. axb5 {[%clk
0:00:53.5]} 44... Rxb5 {[%clk 0:00:55.5]} 45. Kf2 {[%clk 0:00:49.2]} 45... Rb2+
{[%clk 0:00:35.3]} 46. Ke3 {[%clk 0:00:49.5]} 46... Be4 {[%clk 0:00:35.9]} 47.
Nxh4 {[%clk 0:00:49.7]} 47... Kf7 {[%clk 0:00:34.6]} 48. Kf4 {[%clk 0:00:29.2]}
48... Ke6 {[%clk 0:00:34.5]} 49. g4 {[%clk 0:00:23]} 49... Rb3 {[%clk
0:00:33.8]} 50. g5 {[%clk 0:00:04.5]} 50... Rxh3 {[%clk 0:00:31.6]} 51. Kg4
{[%clk 0:00:05.2]} 51... Rd3 {[%clk 0:00:32.3]} 52. gxf6 {[%clk 0:00:05.8]}
52... Kxf6 {[%clk 0:00:31.3]} 53. Rf1+ {[%clk 0:00:06.4]} 53... Ke6 {[%clk
0:00:30.2]} 54. Rb1 {[%clk 0:00:05.8]} 54... Rxd4 {[%clk 0:00:21.4]} 55. Rxb7
{[%clk 0:00:05.7]} 55... Ra4 {[%clk 0:00:22]} 56. Kf4 {[%clk 0:00:02.8]} 56...
Kd6 {[%clk 0:00:19.1]} 57. Rb6+ {[%clk 0:00:02.5]} 57... Kc5 {[%clk 0:00:19.5]}
58. Rb8 {[%clk 0:00:03.2]} 58... Kd4 {[%clk 0:00:20]} 59. Rd8 {[%clk 0:00:01.3]}
59... Ra1 {[%clk 0:00:11.4]} 60. Rd7 {[%clk 0:00:01.8]} 60... Rf1+ {[%clk
0:00:11.3]} 61. Kg4 {[%clk 0:00:02.4]} 61... Kc4 {[%clk 0:00:08.5]} 62. Re7
{[%clk 0:00:02.3]} 62... Kd3 {[%clk 0:00:08.1]} 63. Rd7 {[%clk 0:00:01.8]} 63...
d4 {[%clk 0:00:08.3]} 64. Kg3 {[%clk 0:00:02.4]} 64... Ke3 {[%clk 0:00:07.3]}
65. Re7 {[%clk 0:00:03]} 65... Rg1+ {[%clk 0:00:05.7]} 66. Kh2 {[%clk
0:00:03.3]} 66... Rg5 {[%clk 0:00:05.8]} 67. Rd7 {[%clk 0:00:01.2]} 67... d3
{[%clk 0:00:05.5]} 68. Ra7 {[%clk 0:00:01.3]} 68... d2 {[%clk 0:00:05.3]} 69.
Ra3+ {[%clk 0:00:01.7]} 69... Ke2 {[%clk 0:00:05.8]} 70. Ra2 {[%clk 0:00:01.8]}
70... Ke1 {[%clk 0:00:05.6]} 0-1

[Event "Early-Titled-Tuesday-Blitz-February-27-2024"]
[Site "Chess.com"]
[Date "2024.02.27"]
[Round "11"]
[White "maurovargas01"]
[Black "deepfear"]
[Result "0-1"]
[WhiteElo "1851"]
[BlackElo "1970"]
[TimeControl "180+1"]
[EndTime "10:07:32 PST"]
[Termination "deepfear won on time"]

1. e4 {[%clk 0:02:58.8]} 1... c5 {[%clk 0:02:59.4]} 2. Nc3 {[%clk 0:02:57.6]}
2... g6 {[%clk 0:02:52.9]} 3. f4 {[%clk 0:02:58.5]} 3... Bg7 {[%clk 0:02:47.1]}
4. Nf3 {[%clk 0:02:59.4]} 4... e6 {[%clk 0:02:44.2]} 5. d3 {[%clk 0:02:57.2]}
5... Ne7 {[%clk 0:02:44]} 6. Nb5 {[%clk 0:02:51.3]} 6... d6 {[%clk 0:02:35.6]}
7. Nc3 {[%clk 0:02:47.5]} 7... O-O {[%clk 0:02:35]} 8. g4 {[%clk 0:02:45]} 8...
f5 {[%clk 0:02:21.3]} 9. g5 {[%clk 0:02:39]} 9... Nbc6 {[%clk 0:02:11.3]} 10.
Ne2 {[%clk 0:02:35.9]} 10... fxe4 {[%clk 0:02:02.1]} 11. dxe4 {[%clk 0:02:35.8]}
11... d5 {[%clk 0:01:45.5]} 12. exd5 {[%clk 0:02:34.1]} 12... exd5 {[%clk
0:01:35.3]} 13. Ng3 {[%clk 0:02:31.7]} 13... Nf5 {[%clk 0:01:14.4]} 14. Nxf5
{[%clk 0:02:27.4]} 14... Bxf5 {[%clk 0:01:14.1]} 15. Bg2 {[%clk 0:02:27.1]}
15... Re8+ {[%clk 0:01:10.1]} 16. Kf2 {[%clk 0:02:21.7]} 16... Bg4 {[%clk
0:00:38.6]} 17. c3 {[%clk 0:02:20.2]} 17... d4 {[%clk 0:00:36.8]} 18. Re1 {[%clk
0:02:09.9]} 18... dxc3 {[%clk 0:00:27.3]} 19. Rxe8+ {[%clk 0:01:56.4]} 19...
Qxe8 {[%clk 0:00:26.8]} 20. bxc3 {[%clk 0:01:51.7]} 20... Rd8 {[%clk 0:00:25.7]}
21. Qb3+ {[%clk 0:01:49.7]} 21... Kh8 {[%clk 0:00:25.4]} 22. Be3 {[%clk
0:01:47.5]} 22... b6 {[%clk 0:00:24.6]} 23. Re1 {[%clk 0:01:45.1]} 23... Na5
{[%clk 0:00:22.9]} 24. Qc2 {[%clk 0:01:27.9]} 24... Qd7 {[%clk 0:00:20.5]} 25.
Ne5 {[%clk 0:01:19.9]} 25... Bxe5 {[%clk 0:00:19.8]} 26. fxe5 {[%clk 0:01:17.7]}
26... Nc4 {[%clk 0:00:19.6]} 27. Bf4 {[%clk 0:01:11.7]} 27... Rf8 {[%clk
0:00:18.6]} 28. Kg3 {[%clk 0:01:10.1]} 28... Qf7 {[%clk 0:00:17]} 29. Qe4 {[%clk
0:01:04.7]} 29... Be6 {[%clk 0:00:16.4]} 30. Rf1 {[%clk 0:00:54.8]} 30... Qd7
{[%clk 0:00:13.9]} 31. Bf3 {[%clk 0:00:43]} 31... b5 {[%clk 0:00:12.3]} 32. Rd1
{[%clk 0:00:42.4]} 32... Qf7 {[%clk 0:00:11.7]} 33. a4 {[%clk 0:00:30]} 33...
Bf5 {[%clk 0:00:11.4]} 34. Qd5 {[%clk 0:00:22.9]} 34... Qxd5 {[%clk 0:00:06.9]}
35. Rxd5 {[%clk 0:00:21.6]} 35... Nb2 {[%clk 0:00:06.8]} 36. axb5 {[%clk
0:00:20]} 36... Nd3 {[%clk 0:00:07]} 37. Be3 {[%clk 0:00:16.3]} 37... Ne1 {[%clk
0:00:05.7]} 38. Rxc5 {[%clk 0:00:14.5]} 38... Nxf3 {[%clk 0:00:05.3]} 39. Kxf3
{[%clk 0:00:14.7]} 39... Be6+ {[%clk 0:00:04.6]} 40. Kg3 {[%clk 0:00:14.5]}
40... Rb8 {[%clk 0:00:04.7]} 41. Bd4 {[%clk 0:00:13]} 41... Bf5 {[%clk
0:00:04.2]} 42. e6+ {[%clk 0:00:12]} 42... Kg8 {[%clk 0:00:03.6]} 43. e7 {[%clk
0:00:09.9]} 43... Re8 {[%clk 0:00:03.9]} 44. Rc7 {[%clk 0:00:09.6]} 44... Be6
{[%clk 0:00:03.4]} 45. Rxa7 {[%clk 0:00:09.8]} 45... Kf7 {[%clk 0:00:03.1]} 46.
Bf6 {[%clk 0:00:09.3]} 46... Bc4 {[%clk 0:00:02.3]} 47. Rd7 {[%clk 0:00:08.4]}
47... Bxb5 {[%clk 0:00:02.3]} 48. Rd8 {[%clk 0:00:07.7]} 48... Ba4 {[%clk
0:00:02.2]} 49. c4 {[%clk 0:00:07.2]} 49... Bb3 {[%clk 0:00:02.2]} 50. c5 {[%clk
0:00:07.1]} 50... Ba4 {[%clk 0:00:02.4]} 51. Rxe8 {[%clk 0:00:06.2]} 51... Kxe8
{[%clk 0:00:02.3]} 52. Kf4 {[%clk 0:00:06]} 52... Bc6 {[%clk 0:00:02.4]} 53. Ke5
{[%clk 0:00:06.1]} 53... Kd7 {[%clk 0:00:03]} 54. Kd4 {[%clk 0:00:05.2]} 54...
Ba4 {[%clk 0:00:02.8]} 55. Ke5 {[%clk 0:00:05.1]} 55... Bc6 {[%clk 0:00:03.3]}
56. Kd4 {[%clk 0:00:04.8]} 56... Ba4 {[%clk 0:00:04]} 57. h3 {[%clk 0:00:04.6]}
57... Bc6 {[%clk 0:00:04.2]} 58. h4 {[%clk 0:00:04.9]} 58... Ba4 {[%clk
0:00:04.5]} 59. Ke5 {[%clk 0:00:04.9]} 59... Bc6 {[%clk 0:00:03.8]} 60. Kf4
{[%clk 0:00:04.9]} 60... Ba4 {[%clk 0:00:03.6]} 61. Kg4 {[%clk 0:00:04.9]} 61...
Ke6 {[%clk 0:00:03.3]} 62. Kf4 {[%clk 0:00:04.3]} 62... Be8 {[%clk 0:00:03.4]}
63. Ke3 {[%clk 0:00:03.2]} 63... Kd5 {[%clk 0:00:03.4]} 0-1

[Event "Early-Titled-Tuesday-Blitz-February-27-2024"]
[Site "Chess.com"]
[Date "2024.02.27"]
[Round "11"]
[White "vladgoncharov"]
[Black "ilqar_74"]
[Result "0-1"]
[WhiteElo "2652"]
[BlackElo "2825"]
[TimeControl "180+1"]
[EndTime "10:07:35 PST"]
[Termination "ilqar_74 won by checkmate"]

1. d4 {[%clk 0:03:00.9]} 1... Nf6 {[%clk 0:02:58.5]} 2. c4 {[%clk 0:03:00.8]}
2... e6 {[%clk 0:02:56.7]} 3. Nc3 {[%clk 0:03:00.3]} 3... d5 {[%clk 0:02:56.3]}
4. cxd5 {[%clk 0:02:59.4]} 4... exd5 {[%clk 0:02:57.2]} 5. Bg5 {[%clk
0:02:59.3]} 5... Bb4 {[%clk 0:02:57.7]} 6. Qa4+ {[%clk 0:02:52.1]} 6... Nc6
{[%clk 0:02:57.4]} 7. e3 {[%clk 0:02:52.3]} 7... h6 {[%clk 0:02:55.2]} 8. Bh4
{[%clk 0:02:50.5]} 8... g5 {[%clk 0:02:51.4]} 9. Bg3 {[%clk 0:02:50.4]} 9... Ne4
{[%clk 0:02:51.2]} 10. Qc2 {[%clk 0:02:49.8]} 10... h5 {[%clk 0:02:49.1]} 11.
Bd3 {[%clk 0:02:34.7]} 11... h4 {[%clk 0:02:46.6]} 12. Bxe4 {[%clk 0:02:19.5]}
12... hxg3 {[%clk 0:02:46.4]} 13. Nf3 {[%clk 0:01:53.5]} 13... dxe4 {[%clk
0:02:42.4]} 14. Qxe4+ {[%clk 0:01:50.6]} 14... Qe7 {[%clk 0:02:41.6]} 15. Nxg5
{[%clk 0:01:50.4]} 15... Rxh2 {[%clk 0:01:59.8]} 16. Rxh2 {[%clk 0:01:45.5]}
16... gxh2 {[%clk 0:01:52.2]} 17. Ke2 {[%clk 0:01:45.5]} 17... Qxe4 {[%clk
0:01:45.1]} 18. Ngxe4 {[%clk 0:01:44.3]} 18... Bxc3 {[%clk 0:01:43.8]} 19. bxc3
{[%clk 0:01:43.4]} 19... Bf5 {[%clk 0:01:36.4]} 20. Ng3 {[%clk 0:01:42.7]} 20...
Bg6 {[%clk 0:01:34.2]} 21. Rh1 {[%clk 0:01:41.4]} 21... Ke7 {[%clk 0:01:34]} 22.
Rxh2 {[%clk 0:01:40.8]} 22... b5 {[%clk 0:01:32.5]} 23. f4 {[%clk 0:01:36.1]}
23... f5 {[%clk 0:01:28.3]} 24. Kd2 {[%clk 0:01:32.7]} 24... Na5 {[%clk
0:01:26.5]} 25. e4 {[%clk 0:01:29]} 25... Nc4+ {[%clk 0:01:24.9]} 26. Ke2 {[%clk
0:01:28.5]} 26... fxe4 {[%clk 0:01:19.8]} 27. f5 {[%clk 0:01:28.4]} 27... Bf7
{[%clk 0:01:18.9]} 28. Nxe4 {[%clk 0:01:19.8]} 28... Nd6 {[%clk 0:01:15.3]} 29.
Nxd6 {[%clk 0:01:15.7]} 29... cxd6 {[%clk 0:01:15.3]} 30. a3 {[%clk 0:01:16.2]}
30... Rc8 {[%clk 0:01:11]} 31. Rh3 {[%clk 0:01:12]} 31... Rg8 {[%clk 0:01:10.1]}
32. Kf3 {[%clk 0:01:01.3]} 32... Bd5+ {[%clk 0:01:08.8]} 33. Kf4 {[%clk
0:01:01.6]} 33... Rxg2 {[%clk 0:01:05.7]} 34. Rh7+ {[%clk 0:01:01.3]} 34... Bf7
{[%clk 0:01:05.8]} 35. Rh8 {[%clk 0:01:01.7]} 35... Ra2 {[%clk 0:01:00.4]} 36.
Rb8 {[%clk 0:01:00.7]} 36... a6 {[%clk 0:00:57.2]} 37. Rb7+ {[%clk 0:00:54.3]}
37... Kf6 {[%clk 0:00:55.1]} 38. Rd7 {[%clk 0:00:54.1]} 38... Rxa3 {[%clk
0:00:43.7]} 39. Rxd6+ {[%clk 0:00:53.5]} 39... Ke7 {[%clk 0:00:43.6]} 40. Ke5
{[%clk 0:00:51.5]} 40... Rxc3 {[%clk 0:00:42.3]} 41. f6+ {[%clk 0:00:51.5]}
41... Ke8 {[%clk 0:00:42.6]} 42. Rxa6 {[%clk 0:00:51.4]} 42... Re3+ {[%clk
0:00:42]} 43. Kf4 {[%clk 0:00:51.2]} 43... Rd3 {[%clk 0:00:22.4]} 44. Ke5 {[%clk
0:00:48.8]} 44... Re3+ {[%clk 0:00:22.6]} 45. Kf4 {[%clk 0:00:48.6]} 45... Rh3
{[%clk 0:00:21.4]} 46. Ra7 {[%clk 0:00:38.4]} 46... Rh5 {[%clk 0:00:17.5]} 47.
Re7+ {[%clk 0:00:35.5]} 47... Kf8 {[%clk 0:00:17.7]} 48. Rb7 {[%clk 0:00:35.3]}
48... Be6 {[%clk 0:00:13.6]} 49. Re7 {[%clk 0:00:29.7]} 49... Rf5+ {[%clk
0:00:13]} 50. Ke4 {[%clk 0:00:28.7]} 50... Rxf6 {[%clk 0:00:13.4]} 51. Rb7
{[%clk 0:00:27.7]} 51... Rf5 {[%clk 0:00:13.5]} 52. Rb8+ {[%clk 0:00:25.1]}
52... Kf7 {[%clk 0:00:12.5]} 53. Rb7+ {[%clk 0:00:24.7]} 53... Kf6 {[%clk
0:00:13]} 54. Rb6 {[%clk 0:00:25]} 54... Rh5 {[%clk 0:00:13.1]} 55. Kd3 {[%clk
0:00:20.2]} 55... Ke7 {[%clk 0:00:12.5]} 56. Kc3 {[%clk 0:00:19.8]} 56... Bc4
{[%clk 0:00:12.8]} 57. Kb4 {[%clk 0:00:19.6]} 57... Rd5 {[%clk 0:00:13.1]} 58.
Rb7+ {[%clk 0:00:19.2]} 58... Kd6 {[%clk 0:00:13]} 59. Rb6+ {[%clk 0:00:19.4]}
59... Kc7 {[%clk 0:00:13.2]} 60. Rh6 {[%clk 0:00:19.4]} 60... Rxd4 {[%clk
0:00:13]} 61. Kc5 {[%clk 0:00:19.9]} 61... Rd5+ {[%clk 0:00:13.5]} 62. Kb4
{[%clk 0:00:20.4]} 62... Rd6 {[%clk 0:00:14]} 63. Rh5 {[%clk 0:00:20.1]} 63...
Kc6 {[%clk 0:00:14.4]} 64. Rh4 {[%clk 0:00:20.6]} 64... Kb6 {[%clk 0:00:14.3]}
65. Rg4 {[%clk 0:00:20.7]} 65... Rc6 {[%clk 0:00:14.8]} 66. Rh4 {[%clk
0:00:21.1]} 66... Be2 {[%clk 0:00:14]} 67. Ka3 {[%clk 0:00:20.2]} 67... Rc3+
{[%clk 0:00:13.6]} 68. Kb2 {[%clk 0:00:19.9]} 68... Re3 {[%clk 0:00:14.2]} 69.
Rh8 {[%clk 0:00:19.9]} 69... Ka5 {[%clk 0:00:13.8]} 70. Rh4 {[%clk 0:00:20.1]}
70... Bc4 {[%clk 0:00:13.9]} 71. Rh2 {[%clk 0:00:19]} 71... Kb4 {[%clk 0:00:14]}
72. Rh8 {[%clk 0:00:18.4]} 72... Rb3+ {[%clk 0:00:14.1]} 73. Kc2 {[%clk
0:00:18.7]} 73... Rg3 {[%clk 0:00:14.1]} 74. Kb2 {[%clk 0:00:18.9]} 74... Rg2+
{[%clk 0:00:14.1]} 75. Kc1 {[%clk 0:00:19.2]} 75... Kc3 {[%clk 0:00:13.8]} 76.
Rh3+ {[%clk 0:00:18.5]} 76... Bd3 {[%clk 0:00:14.1]} 77. Rh1 {[%clk 0:00:19.2]}
77... b4 {[%clk 0:00:13.6]} 78. Rd1 {[%clk 0:00:11.1]} 78... Rc2+ {[%clk
0:00:12.2]} 79. Kb1 {[%clk 0:00:11]} 79... Rd2+ {[%clk 0:00:11.7]} 80. Ka1
{[%clk 0:00:08.8]} 80... Rxd1+ {[%clk 0:00:11.6]} 81. Ka2 {[%clk 0:00:09.7]}
81... b3+ {[%clk 0:00:12.2]} 82. Ka3 {[%clk 0:00:10.6]} 82... Ra1# {[%clk
0:00:12.9]} 0-1